[Event "FIDE Womens Grand Prix 2019-20"]
[Site "Skolkovo"]
[Date "2019.09.22"]
[Round "11.1"]
[White "Koneru, Humpy"]
[Black "Ju, Wenjun"]
[Result "1/2-1/2"]
[ECO "D38"]
[WhiteElo "2560"]
[BlackElo "2576"]
[Annotator "ChessBase"]
[PlyCount "70"]
[EventDate "2019.09.11"]
[EventType "tourn"]
[EventCountry "RUS"]
[SourceTitle "playchess.com"]
[Source "ChessBase"]
[SourceQuality "1"]
[TimeControl "40/5400+30:1800+30"]

1. d4 {[%emt 0:00:00]} Nf6 {[%emt 0:00:00]} 2. Nf3 {[%emt 0:00:00]} d5 {[%emt 0:00:00]} 3. c4 {[%emt 0:00:13]} e6 {[%emt 0:00:00]} 4. Nc3 {[%emt 0:00:31]} Bb4 {[%emt 0:00:02]} 5. Bg5 {[%emt 0:00:38]} h6 {[%emt 0:00:05]} 6. Bxf6 {[%emt 0:00:27]} Qxf6 {[%emt 0:00:03]} 7. Qb3 {[%emt 0:01:14]} c5 {[%emt 0:00:24]} 8. cxd5 {[%emt 0:00:38]} exd5 {[%emt 0:00:04]} 9. a3 {[%emt 0:00:10]} Bxc3+ {[%emt 0:00:04]} 10. Qxc3 {[%emt 0:00:05]} b6 {[%emt 0:01:26]} 11. e3 {[%emt 0:02:48]} Nd7 {[%emt 0:00:46]} 12. Be2 {[%emt 0:03:39]} O-O {[%emt 0:00:39]} 13. O-O {[%emt 0:01:03]} Bb7 {[%emt 0:00:22]} 14. Bb5 {[%emt 0:07:44]} Rfd8 {[%emt 0:06:36]} 15. Rfc1 {[%emt 0:07:22]} c4 {[%emt 0:10:36]} 16. Bxd7 {[%emt 0:03:23]} Rxd7 {[%emt 0:00:03]} 17. b3 {[%emt 0:01:11]} Rc8 {[%emt 0:05:25]} 18. Nd2 {[%emt 0:04:53]} cxb3 {[%emt 0:06:57]} 19. Qxb3 {[%emt 0:07:49]} Rdc7 {[%emt 0:00:02]} 20. Qb2 {[%emt 0:00:14]} Qd6 {[%emt 0:04:07]} 21. Nb3 {[%emt 0:02:10]} Ba6 {[%emt 0:03:02]} 22. Rxc7 {[%emt 0:05:45]} Rxc7 {[%emt 0:00:03]} 23. h3 {[%emt 0:00:23]} Bd3 {[%emt 0:11:05]} 24. Rc1 {[%emt 0:01:24]} Rxc1+ {[%emt 0:00:03]} 25. Qxc1 {[%emt 0:04:58]} a5 {[%emt 0:03:22]} 26. Qc3 {[%emt 0:07:11]} Qxa3 {[%emt 0:03:26]} 27. Qxd3 {[%emt 0:00:11]} a4 {[%emt 0:13:07]} 28. Qa6 Kh7 29. Nc5 {[%emt 0:04:38]} bxc5 {[%emt 0:01:52]} 30. dxc5 {[%emt 0:00:06]} d4 {[%emt 0:11:52]} 31. exd4 {[%emt 0:02:28]} Qa1+ {[%emt 0:00:07]} 32. Kh2 {[%emt 0:00:09]} Qxd4 {[%emt 0:00:04]} 33. c6 {[%emt 0:01:12]} Qf4+ {[%emt 0:03:51]} 34. Kg1 {[%emt 0:00:06]} Qc1+ {[%emt 0:00:04]} 35. Kh2 {[%emt 0:00:04]} Qf4+ {[%emt 0:00:24]} 1/2-1/2

[Event "FIDE Womens Grand Prix 2019-20"]
[Site "Skolkovo"]
[Date "2019.09.22"]
[Round "11.2"]
[White "Harika, Dronavalli"]
[Black "Lagno, Kateryna"]
[Result "1/2-1/2"]
[ECO "D76"]
[WhiteElo "2503"]
[BlackElo "2545"]
[Annotator "ChessBase"]
[PlyCount "60"]
[EventDate "2019.09.11"]
[EventType "tourn"]
[EventCountry "RUS"]
[SourceTitle "playchess.com"]
[Source "ChessBase"]
[SourceQuality "1"]
[TimeControl "40/5400+30:1800+30"]

1. Nf3 {[%emt 0:00:00]} Nf6 {[%emt 0:00:00]} 2. g3 {[%emt 0:00:00]} g6 {[%emt 0:00:05]} 3. Bg2 {[%emt 0:00:00]} Bg7 {[%emt 0:00:18]} 4. O-O {[%emt 0:00:09]} O-O {[%emt 0:00:41]} 5. c4 {[%emt 0:00:21]} d5 {[%emt 0:00:47]} 6. cxd5 {[%emt 0:00:44]} Nxd5 {[%emt 0:00:24]} 7. d4 {[%emt 0:00:18]} Nb6 {[%emt 0:00:58]} 8. Nc3 {[%emt 0:00:40]} Nc6 {[%emt 0:00:05]} 9. e3 {[%emt 0:00:16]} Re8 {[%emt 0:00:10]} 10. h3 {[%emt 0:01:55]} a5 {[%emt 0:00:15]} 11. d5 {[%emt 0:01:58]} Ne5 {[%emt 0:00:53]} 12. Nxe5 {[%emt 0:01:54]} Bxe5 {[%emt 0:00:04]} 13. e4 {[%emt 0:01:15]} e6 {[%emt 0:01:13]} 14. Bh6 {[%emt 0:06:29]} exd5 {[%emt 0:04:26]} 15. exd5 {[%emt 0:00:17]} Nc4 {[%emt 0:07:23]} 16. Qc1 {[%emt 0:06:44]} Nd6 17. Re1 {[%emt 0:02:03]} Bd7 {[%emt 0:11:18]} 18. Bg5 {[%emt 0:06:18]} Bf6 {[%emt 0:00:45]} 19. Rxe8+ {[%emt 0:00:13]} Bxe8 {[%emt 0:00:21]} 20. Bxf6 {[%emt 0:01:35]} Qxf6 {[%emt 0:00:05]} 21. Ne4 {[%emt 0:01:50]} Nxe4 {[%emt 0:04:23]} 22. Bxe4 {[%emt 0:00:10]} c6 {[%emt 0:02:07]} 23. dxc6 {[%emt 0:06:00]} Bxc6 {[%emt 0:00:10]} 24. Bxc6 {[%emt 0:00:06]} Rc8 {[%emt 0:00:45]} 25. Qd2 {[%emt 0:00:25]} Rxc6 {[%emt 0:00:07]} 26. Rc1 {[%emt 0:00:55]} Rxc1+ {[%emt 0:00:50]} 27. Qxc1 {[%emt 0:00:04]} Qe6 {[%emt 0:00:32]} 28. h4 {[%emt 0:00:15]} Qxa2 {[%emt 0:00:57]} 29. Qc8+ {[%emt 0:00:05]} Kg7 {[%emt 0:00:04]} 30. Qxb7 {[%emt 0:00:03]} h5 {[%emt 0:00:26]} 1/2-1/2

[Event "FIDE Womens Grand Prix 2019-20"]
[Site "Skolkovo"]
[Date "2019.09.22"]
[Round "11.5"]
[White "Kosteniuk, Alexandra"]
[Black "Stefanova, Antoaneta"]
[Result "0-1"]
[ECO "C84"]
[WhiteElo "2495"]
[BlackElo "2491"]
[Annotator "ChessBase"]
[PlyCount "66"]
[EventDate "2019.09.11"]
[EventType "tourn"]
[EventCountry "RUS"]
[SourceTitle "playchess.com"]
[Source "ChessBase"]
[SourceQuality "1"]
[TimeControl "40/5400+30:1800+30"]

1. e4 {[%emt 0:00:00]} e5 {[%emt 0:00:00]} 2. Nf3 {[%emt 0:00:00]} Nc6 {[%emt 0:00:00]} 3. Bb5 {[%emt 0:00:00]} a6 {[%emt 0:00:58]} 4. Ba4 {[%emt 0:00:00]} Nf6 {[%emt 0:00:35]} 5. O-O {[%emt 0:00:10]} Be7 {[%emt 0:06:28]} 6. d3 {[%emt 0:01:01]} b5 {[%emt 0:12:49]} 7. Bb3 {[%emt 0:00:07]} O-O {[%emt 0:01:41]} 8. Nc3 {[%emt 0:00:10]} Bb7 {[%emt 0:16:20]} 9. a3 {[%emt 0:04:18]} d6 {[%emt 0:07:54]} 10. Ba2 {[%emt 0:07:32]} h6 {[%emt 0:05:33]} 11. Re1 {[%emt 0:07:24]} Re8 {[%emt 0:01:13]} 12. b4 {[%emt 0:16:56]} Qd7 {[%emt 0:05:03]} 13. Bb2 {[%emt 0:03:23]} Bf8 {[%emt 0:02:14]} 14. Nd5 {[%emt 0:01:43]} Nxd5 {[%emt 0:01:27]} 15. Bxd5 {[%emt 0:07:29]} Rab8 {[%emt 0:00:07]} 16. c4 {[%emt 0:03:15]} Ne7 {[%emt 0:04:10]} 17. Bxb7 {[%emt 0:04:28]} Rxb7 {[%emt 0:00:01]} 18. d4 {[%emt 0:00:58]} exd4 {[%emt 0:04:29]} 19. Qxd4 {[%emt 0:01:08]} c5 {[%emt 0:00:53]} 20. bxc5 {[%emt 0:04:36]} Nc6 {[%emt 0:00:09]} 21. Qc3 {[%emt 0:02:36]} dxc5 {[%emt 0:00:21]} 22. Rad1 {[%emt 0:00:16]} Qc7 {[%emt 0:02:48]} 23. cxb5 {[%emt 0:04:56]} axb5 {[%emt 0:07:10]} 24. Rd5 {[%emt 0:00:07]} c4 {[%emt 0:01:19]} 25. Nh4 {[%emt 0:03:10]} b4 {[%emt 0:09:55]} 26. Qc1 {[%emt 0:00:44]} c3 {[%emt 0:01:41]} 27. Ba1 {[%emt 0:00:04]} Ra8 {[%emt 0:01:26]} 28. axb4 {[%emt 0:01:53]} Nxb4 {[%emt 0:00:13]} 29. Rdd1 {[%emt 0:00:06]} Rxa1 {[%emt 0:02:15]} 30. Qxa1 {[%emt 0:00:04]} Nc2 {[%emt 0:00:06]} 31. Qa2 {[%emt 0:03:30]} Rb2 {[%emt 0:02:05]} 32. Qa8 {[%emt 0:03:38]} Nxe1 {[%emt 0:00:37]} 33. Rd8 {[%emt 0:00:05]} Qc5 {[%emt 0:01:34]} 0-1